[Event "Chinese Chess League 2019"]
[Site "Shen Yang"]
[Date "2019.11.21"]
[Round "16.24"]
[White "Song, Yuxin"]
[Black "Xiao, Yiyi"]
[Result "1-0"]
[ECO "C60"]
[WhiteElo "2284"]
[BlackElo "2316"]
[Annotator "ChessBase"]
[PlyCount "61"]
[EventDate "2019.04.09"]
[EventType "team-tourn"]
[EventCountry "CHN"]
[SourceTitle "playchess.com"]
[Source "ChessBase"]
[SourceQuality "1"]
[TimeControl "5400+30"]

1. e4 {[%emt 0:04:46]} e5 {[%emt 0:00:00]} 2. Nf3 {[%emt 0:00:00]} Nc6 {[%emt 0:00:00]} 3. Bb5 {[%emt 0:02:37]} Nge7 {[%emt 0:04:18]} 4. O-O {[%emt 0:02:12]} g6 {[%emt 0:02:18]} 5. d4 exd4 6. Nxd4 {[%emt 0:00:00]} Bg7 {[%emt 0:02:42]} 7. Nxc6 {[%emt 0:05:14]} bxc6 {[%emt 0:05:31]} 8. Ba4 {[%emt 0:00:36]} O-O {[%emt 0:00:29]} 9. Nc3 {[%emt 0:00:00]} Rb8 {[%emt 0:07:31]} 10. Qf3 {[%emt 0:00:00]} d6 {[%emt 0:05:22]} 11. Rb1 {[%emt 0:00:00]} h6 {[%emt 0:11:00]} 12. Be3 {[%emt 0:00:00]} f5 {[%emt 0:00:30]} 13. e5 {[%emt 0:00:13]} f4 {[%emt 0:28:49]} 14. Bxa7 {[%emt 0:27:39]} Rb4 {[%emt 0:00:30]} 15. a3 {[%emt 0:00:30]} Rxa4 {[%emt 0:00:30]} 16. Nxa4 {[%emt 0:00:30]} Bxe5 {[%emt 0:04:15]} 17. Rfe1 {[%emt 0:19:20]} Bf5 {[%emt 0:06:24]} 18. Qb3+ {[%emt 0:02:24]} Nd5 {[%emt 0:06:03]} 19. f3 {[%emt 0:10:15]} Kh7 {[%emt 0:03:07]} 20. Rbd1 {[%emt 0:09:04]} Qg5 {[%emt 0:03:15]} 21. c4 {[%emt 0:02:45]} Ne7 {[%emt 0:00:30]} 22. Be3 {[%emt 0:00:30]} fxe3 {[%emt 0:00:30]} 23. Qxe3 {[%emt 0:00:30]} Bc2 {[%emt 0:00:30]} 24. Qxg5 {[%emt 0:00:30]} hxg5 {[%emt 0:00:30]} 25. Rxe5 {[%emt 0:00:30]} dxe5 {[%emt 0:00:30]} 26. Rd7 {[%emt 0:00:30]} Kh6 {[%emt 0:00:30]} 27. Nc5 {[%emt 0:00:30]} g4 {[%emt 0:00:30]} 28. fxg4 {[%emt 0:00:30]} Rf4 {[%emt 0:00:30]} 29. g5+ {[%emt 0:00:30]} Kh5 {[%emt 0:00:30]} 30. Ne6 {[%emt 0:00:30]} Rxc4 {[%emt 0:00:30]} 31. h3 {[%emt 0:00:30]} 1-0

[Event "Chinese Chess League 2019"]
[Site "Shen Yang"]
[Date "2019.11.21"]
[Round "16.30"]
[White "Zhao, Shengxin"]
[Black "Ni, Shiqun"]
[Result "0-1"]
[ECO "D27"]
[WhiteElo "2099"]
[BlackElo "2391"]
[Annotator "ChessBase"]
[PlyCount "51"]
[EventDate "2019.04.09"]
[EventType "team-tourn"]
[EventCountry "CHN"]
[SourceTitle "playchess.com"]
[Source "ChessBase"]
[SourceQuality "1"]
[TimeControl "5400+30"]

1. d4 d5 2. c4 dxc4 3. Nf3 Nf6 4. e3 e6 5. Bxc4 c5 6. O-O a6 7. Bb3 Be7 8. Nc3 Nc6 9. Qe2 O-O 10. Rd1 Qc7 11. e4 cxd4 12. Nxd4 Nxd4 13. Rxd4 b5 14. e5 Nd7 15. Bf4 Bb7 16. Bc2 Rfd8 17. Rc1 Rac8 18. Ne4 {[%emt 0:38:05]} Bxe4 {[%emt 0:38:07]} 19. Bxe4 {[%emt 0:00:30]} Qxc1+ {[%emt 0:00:30]} 20. Bxc1 {[%emt 0:00:30]} Rxc1+ {[%emt 0:00:30]} 21. Rd1 {[%emt 0:00:30]} Rxd1+ {[%emt 0:00:30]} 22. Qxd1 {[%emt 0:00:30]} Nc5 {[%emt 0:00:30]} 23. Qc2 {[%emt 0:00:30]} Nxe4 {[%emt 0:00:30]} 24. f3 {[%emt 0:00:30]} Bc5+ {[%emt 0:00:30]} 25. Kf1 {[%emt 0:00:30]} Nd2+ {[%emt 0:00:30]} 26. Ke1 {[%emt 0:00:30]} 0-1

[Event "Chinese Chess League 2019"]
[Site "Shen Yang"]
[Date "2019.11.22"]
[Round "17.1"]
[White "Xu, Yi"]
[Black "Liu, Qingnan"]
[Result "1/2-1/2"]
[ECO "C42"]
[WhiteElo "2541"]
[BlackElo "2535"]
[Annotator "ChessBase"]
[PlyCount "60"]
[EventDate "2019.04.09"]
[EventType "team-tourn"]
[EventCountry "CHN"]
[SourceTitle "playchess.com"]
[Source "ChessBase"]
[SourceQuality "1"]
[TimeControl "5400+30"]

1. e4 {[%emt 0:00:00]} e5 {[%emt 0:00:00]} 2. Nf3 {[%emt 0:00:00]} Nf6 {[%emt 0:00:00]} 3. Nxe5 {[%emt 0:00:00]} d6 {[%emt 0:00:00]} 4. Nf3 {[%emt 0:00:00]} Nxe4 {[%emt 0:00:00]} 5. d4 {[%emt 0:00:00]} d5 {[%emt 0:00:00]} 6. Bd3 {[%emt 0:00:00]} Bd6 {[%emt 0:00:00]} 7. O-O {[%emt 0:00:18]} O-O {[%emt 0:00:02]} 8. c4 {[%emt 0:00:12]} c6 {[%emt 0:00:04]} 9. Qc2 {[%emt 0:00:49]} Na6 {[%emt 0:03:31]} 10. a3 {[%emt 0:00:07]} f5 {[%emt 0:01:40]} 11. Nc3 {[%emt 0:01:14]} Nc7 {[%emt 0:00:43]} 12. b4 {[%emt 0:00:57]} Nxc3 {[%emt 0:05:00]} 13. Qxc3 {[%emt 0:00:11]} dxc4 {[%emt 0:00:04]} 14. Bg5 {[%emt 0:01:06]} Qd7 {[%emt 0:15:24]} 15. Bxc4+ {[%emt 0:00:14]} Kh8 {[%emt 0:00:53]} 16. Ne5 {[%emt 0:15:05]} Qe8 {[%emt 0:03:00]} 17. Rfe1 {[%emt 0:26:27]} Be6 {[%emt 0:01:08]} 18. Bf4 {[%emt 0:02:18]} Nd5 {[%emt 0:16:22]} 19. Bxd5 {[%emt 0:00:07]} Bxd5 {[%emt 0:00:02]} 20. Nf3 {[%emt 0:06:50]} Qd7 {[%emt 0:01:36]} 21. Bxd6 {[%emt 0:06:42]} Qxd6 {[%emt 0:00:05]} 22. Ne5 {[%emt 0:00:10]} Rad8 {[%emt 0:00:57]} 23. Rad1 {[%emt 0:00:31]} Kg8 {[%emt 0:00:08]} 24. f3 {[%emt 0:01:49]} Rfe8 {[%emt 0:00:44]} 25. Qd3 {[%emt 0:02:53]} g6 {[%emt 0:00:52]} 26. Qc3 {[%emt 0:00:07]} Bf7 {[%emt 0:01:11]} 27. Kf2 {[%emt 0:02:08]} Qd5 {[%emt 0:00:16]} 28. Rd2 {[%emt 0:01:55]} Kg7 {[%emt 0:01:17]} 29. Re3 {[%emt 0:02:39]} Kg8 {[%emt 0:01:30]} 30. Kg1 {[%emt 0:02:02]} a5 {[%emt 0:04:33]} 1/2-1/2

[Event "Chinese Chess League 2019"]
[Site "Shen Yang"]
[Date "2019.11.22"]
[Round "17.4"]
[White "Stefanova, Antoaneta"]
[Black "Ni, Shiqun"]
[Result "1-0"]
[ECO "D27"]
[WhiteElo "2481"]
[BlackElo "2391"]
[Annotator "ChessBase"]
[PlyCount "75"]
[EventDate "2019.04.09"]
[EventType "team-tourn"]
[EventCountry "CHN"]
[SourceTitle "playchess.com"]
[Source "ChessBase"]
[SourceQuality "1"]
[TimeControl "5400+30"]

1. Nf3 {[%emt 0:00:00]} d5 {[%emt 0:00:00]} 2. d4 {[%emt 0:00:07]} Nf6 {[%emt 0:00:00]} 3. c4 {[%emt 0:00:06]} dxc4 {[%emt 0:00:00]} 4. e3 {[%emt 0:00:05]} e6 {[%emt 0:00:00]} 5. Bxc4 {[%emt 0:00:08]} c5 {[%emt 0:00:06]} 6. O-O {[%emt 0:00:14]} a6 {[%emt 0:00:04]} 7. Nc3 {[%emt 0:02:31]} b5 {[%emt 0:00:07]} 8. Be2 {[%emt 0:01:21]} Nbd7 {[%emt 0:00:15]} 9. d5 {[%emt 0:12:43]} exd5 {[%emt 0:00:15]} 10. Nxd5 {[%emt 0:00:23]} Bb7 {[%emt 0:00:12]} 11. Nxf6+ {[%emt 0:05:03]} Qxf6 {[%emt 0:00:11]} 12. a4 {[%emt 0:02:22]} b4 {[%emt 0:00:09]} 13. e4 {[%emt 0:08:01]} Be7 {[%emt 0:00:12]} 14. Re1 {[%emt 0:23:57]} Rd8 {[%emt 0:19:38]} 15. Qb3 {[%emt 0:23:20]} Ne5 {[%emt 0:02:53]} 16. Nxe5 {[%emt 0:01:09]} Qxe5 {[%emt 0:00:02]} 17. f4 {[%emt 0:03:49]} Qd4+ {[%emt 0:31:44]} 18. Be3 {[%emt 0:00:49]} Qxe4 {[%emt 0:01:02]} 19. Bf3 {[%emt 0:00:27]} Bd5 {[%emt 0:00:02]} 20. Qd1 {[%emt 0:04:10]} Qe6 {[%emt 0:01:29]} 21. Bf2 {[%emt 0:00:29]} Qc6 {[%emt 0:11:58]} 22. Bxd5 {[%emt 0:03:16]} Rxd5 {[%emt 0:02:39]} 23. Qf3 {[%emt 0:01:30]} Rd6 {[%emt 0:03:04]} 24. Qh5 {[%emt 0:02:52]} Rd5 {[%emt 0:07:18]} 25. Re5 {[%emt 0:01:39]} Rxe5 {[%emt 0:08:54]} 26. Qxe5 {[%emt 0:00:01]} f6 {[%emt 0:05:04]} 27. Qb8+ {[%emt 0:00:55]} Bd8 {[%emt 0:00:02]} 28. Re1+ {[%emt 0:01:41]} Kf7 {[%emt 0:00:01]} 29. Rd1 {[%emt 0:00:07]} Qxa4 {[%emt 0:02:27]} 30. Qb7+ {[%emt 0:00:40]} Kg6 {[%emt 0:00:05]} 31. f5+ {[%emt 0:00:36]} Kxf5 {[%emt 0:00:03]} 32. Qf3+ {[%emt 0:00:42]} Kg6 {[%emt 0:00:08]} 33. Qg4+ {[%emt 0:00:33]} Kh6 {[%emt 0:02:06]} 34. Be3+ {[%emt 0:00:18]} g5 {[%emt 0:00:01]} 35. h4 {[%emt 0:00:04]} Re8 {[%emt 0:02:36]} 36. hxg5+ {[%emt 0:00:09]} fxg5 {[%emt 0:00:03]} 37. Rxd8 {[%emt 0:00:34]} Rxe3 {[%emt 0:00:47]} 38. Rd6+ {[%emt 0:00:09]} 1-0

[Event "Chinese Chess League 2019"]
[Site "Shen Yang"]
[Date "2019.11.22"]
[Round "17.5"]
[White "Ning, Kaiyu"]
[Black "Ju, Wenjun"]
[Result "1/2-1/2"]
[ECO "A13"]
[WhiteElo "2330"]
[BlackElo "2586"]
[Annotator "ChessBase"]
[PlyCount "64"]
[EventDate "2019.04.09"]
[EventType "team-tourn"]
[EventCountry "CHN"]
[SourceTitle "playchess.com"]
[Source "ChessBase"]
[SourceQuality "1"]
[TimeControl "5400+30"]

1. Nf3 {[%emt 0:00:00]} d5 {[%emt 0:00:00]} 2. e3 {[%emt 0:00:00]} Nf6 {[%emt 0:00:19]} 3. c4 {[%emt 0:00:00]} e6 {[%emt 0:00:11]} 4. b3 {[%emt 0:00:00]} Be7 {[%emt 0:02:42]} 5. Bb2 {[%emt 0:00:00]} O-O {[%emt 0:00:04]} 6. Nc3 {[%emt 0:00:01]} c5 {[%emt 0:03:39]} 7. cxd5 {[%emt 0:00:06]} exd5 {[%emt 0:02:44]} 8. d4 {[%emt 0:00:11]} Nc6 {[%emt 0:02:15]} 9. Be2 {[%emt 0:00:05]} b6 {[%emt 0:05:26]} 10. O-O {[%emt 0:00:09]} Be6 {[%emt 0:00:39]} 11. Rc1 {[%emt 0:01:08]} Ne4 {[%emt 0:06:46]} 12. Bd3 {[%emt 0:09:47]} f5 {[%emt 0:01:34]} 13. dxc5 {[%emt 0:10:09]} bxc5 {[%emt 0:09:46]} 14. Qe2 {[%emt 0:00:06]} Qa5 {[%emt 0:21:57]} 15. Bb5 {[%emt 0:23:07]} Rac8 {[%emt 0:01:04]} 16. Rfd1 {[%emt 0:00:13]} Rfd8 {[%emt 0:01:05]} 17. Na4 {[%emt 0:00:30]} Nb4 {[%emt 0:00:30]} 18. a3 {[%emt 0:00:30]} Na2 {[%emt 0:00:30]} 19. Ra1 {[%emt 0:00:30]} Rb8 {[%emt 0:00:30]} 20. Bc6 {[%emt 0:00:30]} Nac3 {[%emt 0:00:30]} 21. Nxc3 {[%emt 0:35:43]} Nxc3 {[%emt 0:23:57]} 22. Bxc3 {[%emt 0:01:10]} Qxc3 {[%emt 0:00:03]} 23. b4 {[%emt 0:04:49]} Qc4 {[%emt 0:08:17]} 24. Qd2 {[%emt 0:00:41]} Qa6 {[%emt 0:03:37]} 25. b5 {[%emt 0:00:05]} Qa5 {[%emt 0:00:04]} 26. Rac1 {[%emt 0:04:01]} a6 {[%emt 0:03:14]} 27. Ne5 {[%emt 0:00:50]} axb5 {[%emt 0:00:23]} 28. Nd7 {[%emt 0:02:42]} Rdc8 {[%emt 0:01:24]} 29. Bxd5 {[%emt 0:00:20]} Qa6 {[%emt 0:00:08]} 30. Nxc5 {[%emt 0:03:08]} Rxc5 {[%emt 0:00:39]} 31. Rxc5 {[%emt 0:00:04]} Rd8 {[%emt 0:00:21]} 32. Rc6 {[%emt 0:00:45]} Kf8 1/2-1/2

[Event "Chinese Chess League 2019"]
[Site "Shen Yang"]
[Date "2019.11.22"]
[Round "17.8"]
[White "Lin, Yi"]
[Black "Dai, Changren"]
[Result "1/2-1/2"]
[ECO "E11"]
[WhiteElo "2425"]
[BlackElo "2509"]
[Annotator "ChessBase"]
[PlyCount "42"]
[EventDate "2019.04.09"]
[EventType "team-tourn"]
[EventCountry "CHN"]
[SourceTitle "playchess.com"]
[Source "ChessBase"]
[SourceQuality "1"]
[TimeControl "5400+30"]

1. d4 {[%emt 0:00:00]} Nf6 {[%emt 0:00:00]} 2. c4 {[%emt 0:00:00]} e6 {[%emt 0:00:00]} 3. Nf3 {[%emt 0:00:00]} d5 {[%emt 0:00:00]} 4. g3 {[%emt 0:00:00]} Bb4+ {[%emt 0:00:00]} 5. Bd2 {[%emt 0:00:13]} Be7 {[%emt 0:00:00]} 6. Bg2 {[%emt 0:00:08]} Nbd7 {[%emt 0:00:02]} 7. Qc2 {[%emt 0:02:24]} O-O {[%emt 0:00:07]} 8. O-O {[%emt 0:00:06]} c6 {[%emt 0:00:09]} 9. Rd1 {[%emt 0:00:11]} a5 {[%emt 0:00:05]} 10. Bf4 {[%emt 0:03:51]} b5 {[%emt 0:02:24]} 11. c5 {[%emt 0:03:53]} Nh5 {[%emt 0:01:07]} 12. Bc1 {[%emt 0:08:04]} f5 {[%emt 0:00:23]} 13. Ne5 {[%emt 0:02:39]} Bb7 {[%emt 0:06:21]} 14. Nd2 {[%emt 0:02:24]} Nhf6 {[%emt 0:14:05]} 15. Ndf3 {[%emt 0:01:51]} Nxe5 {[%emt 0:01:59]} 16. Nxe5 {[%emt 0:00:55]} Nd7 {[%emt 0:02:57]} 17. Bf4 {[%emt 0:03:36]} Nxe5 {[%emt 0:04:47]} 18. Bxe5 {[%emt 0:00:06]} Bf6 {[%emt 0:00:07]} 19. Bd6 {[%emt 0:00:30]} Be7 {[%emt 0:00:05]} 20. Be5 {[%emt 0:00:04]} Bf6 {[%emt 0:01:57]} 21. Bd6 {[%emt 0:00:05]} Be7 {[%emt 0:01:17]} 1/2-1/2

[Event "Chinese Chess League 2019"]
[Site "Shen Yang"]
[Date "2019.11.22"]
[Round "17.9"]
[White "Munguntuul, Batkhuyag"]
[Black "Zhou, Zirun"]
[Result "1-0"]
[ECO "C77"]
[WhiteElo "2436"]
[BlackElo "2121"]
[Annotator "ChessBase"]
[PlyCount "91"]
[EventDate "2019.04.09"]
[EventType "team-tourn"]
[EventCountry "CHN"]
[SourceTitle "playchess.com"]
[Source "ChessBase"]
[SourceQuality "1"]
[TimeControl "5400+30"]

1. e4 {[%emt 0:00:00]} e5 {[%emt 0:00:00]} 2. Nf3 {[%emt 0:00:00]} Nc6 {[%emt 0:00:00]} 3. Bb5 {[%emt 0:00:00]} a6 {[%emt 0:00:00]} 4. Ba4 {[%emt 0:00:00]} Nf6 {[%emt 0:00:06]} 5. d3 {[%emt 0:00:00]} b5 {[%emt 0:00:47]} 6. Bb3 {[%emt 0:00:00]} Bc5 {[%emt 0:00:09]} 7. Nc3 {[%emt 0:00:00]} d6 {[%emt 0:01:28]} 8. Nd5 {[%emt 0:00:02]} h6 {[%emt 0:00:10]} 9. c3 {[%emt 0:00:10]} Rb8 {[%emt 0:01:18]} 10. O-O {[%emt 0:01:28]} O-O {[%emt 0:00:17]} 11. Re1 {[%emt 0:00:28]} Nxd5 {[%emt 0:04:00]} 12. Bxd5 {[%emt 0:16:05]} Ne7 {[%emt 0:02:21]} 13. Bb3 {[%emt 0:00:12]} Bb6 {[%emt 0:05:02]} 14. Nh4 {[%emt 0:08:38]} Kh7 {[%emt 0:09:30]} 15. Qh5 {[%emt 0:09:02]} f5 {[%emt 0:01:24]} 16. Nf3 {[%emt 0:04:20]} fxe4 {[%emt 0:19:00]} 17. Ng5+ {[%emt 0:01:05]} Kh8 {[%emt 0:00:08]} 18. Nf7+ {[%emt 0:02:43]} Rxf7 {[%emt 0:00:00]} 19. Qxf7 {[%emt 0:00:10]} Bf5 {[%emt 0:05:56]} 20. dxe4 {[%emt 0:00:56]} Bg6 {[%emt 0:00:10]} 21. Qf3 {[%emt 0:00:48]} Qf8 {[%emt 0:05:48]} 22. Qxf8+ {[%emt 0:03:59]} Rxf8 {[%emt 0:00:06]} 23. Be3 {[%emt 0:00:18]} Bxe3 {[%emt 0:01:16]} 24. Rxe3 {[%emt 0:00:05]} Rb8 {[%emt 0:03:03]} 25. Re2 {[%emt 0:08:02]} Be8 {[%emt 0:03:00]} 26. f3 {[%emt 0:01:08]} Nc6 {[%emt 0:01:58]} 27. Bd5 {[%emt 0:03:15]} Ne7 {[%emt 0:02:21]} 28. Be6 {[%emt 0:00:19]} g6 {[%emt 0:01:12]} 29. Rd2 {[%emt 0:00:37]} Kg7 {[%emt 0:00:20]} 30. b4 {[%emt 0:00:53]} Kf6 {[%emt 0:00:45]} 31. Bb3 {[%emt 0:02:00]} a5 {[%emt 0:00:19]} 32. bxa5 {[%emt 0:11:47]} Ra8 {[%emt 0:00:05]} 33. a4 {[%emt 0:01:06]} Rxa5 {[%emt 0:00:32]} 34. Rda2 {[%emt 0:00:05]} bxa4 {[%emt 0:01:33]} 35. Bxa4 {[%emt 0:00:05]} Bf7 {[%emt 0:00:10]} 36. Bb3 {[%emt 0:01:33]} Rc5 {[%emt 0:00:30]} 37. Bxf7 {[%emt 0:00:06]} Kxf7 {[%emt 0:00:05]} 38. Ra3 {[%emt 0:00:11]} h5 {[%emt 0:02:04]} 39. Kf2 {[%emt 0:00:55]} c6 {[%emt 0:00:37]} 40. Rb1 {[%emt 0:02:23]} d5 {[%emt 0:00:49]} 41. Rb7 {[%emt 0:00:14]} Ke6 {[%emt 0:00:09]} 42. Ke2 {[%emt 0:02:39]} Rc4 {[%emt 0:01:07]} 43. Kd3 {[%emt 0:00:21]} Nc8 {[%emt 0:00:20]} 44. exd5+ {[%emt 0:02:01]} cxd5 {[%emt 0:00:10]} 45. Ra6+ {[%emt 0:00:04]} Kf5 {[%emt 0:02:19]} 46. Rf7+ {[%emt 0:00:04] Ke4+ Kxe4} 1-0

[Event "Chinese Chess League 2019"]
[Site "Shen Yang"]
[Date "2019.11.22"]
[Round "17.10"]
[White "Xiao, Yiyi"]
[Black "Zhao, Shengxin"]
[Result "1/2-1/2"]
[ECO "A45"]
[WhiteElo "2316"]
[BlackElo "2099"]
[Annotator "NA"]
[PlyCount "111"]
[EventDate "2019.04.09"]
[EventType "team-tourn"]
[EventCountry "CHN"]
[SourceTitle "playchess.com"]
[Source "ChessBase"]
[SourceQuality "1"]
[TimeControl "5400+30"]

1. d4 {[%emt 0:00:00]} Nf6 {[%emt 0:01:54]} 2. Bg5 {[%emt 0:00:29]} d5 {[%emt 0:01:39]} 3. e3 {[%emt 0:00:16]} Ne4 {[%emt 0:02:12]} 4. Bf4 {[%emt 0:00:06]} e6 {[%emt 0:01:06]} 5. Bd3 {[%emt 0:01:41]} c5 {[%emt 0:04:31]} 6. c3 {[%emt 0:09:47]} Nc6 {[%emt 0:03:36]} 7. Nd2 {[%emt 0:00:39]} Nxd2 {[%emt 0:00:47]} 8. Qxd2 {[%emt 0:00:08]} Bd6 {[%emt 0:00:10]} 9. Bg3 {[%emt 0:03:32]} O-O {[%emt 0:04:55]} 10. f4 {[%emt 0:02:08]} b6 {[%emt 0:12:49]} 11. Nf3 {[%emt 0:00:12]} a5 {[%emt 0:00:30]} 12. Qe2 {[%emt 0:08:27]} f5 {[%emt 0:01:56]} 13. O-O {[%emt 0:08:46]} a4 {[%emt 0:07:15]} 14. a3 {[%emt 0:00:48]} Bd7 {[%emt 0:04:53]} 15. Bh4 {[%emt 0:05:28]} Qe8 $11 {[%emt 0:01:35]} 16. Rae1 {[%emt 0:16:53]} c4 {[%emt 0:09:57]} 17. Bc2 {[%emt 0:01:46]} b5 {[%emt 0:03:58]} 18. h3 {[%emt 0:06:05]} Qh5 {[%emt 0:03:17]} 19. g3 {[%emt 0:02:16]} Ne7 {[%emt 0:02:44]} 20. Qg2 {[%emt 0:08:58]} Rae8 {[%emt 0:15:27]} 21. g4 {[%emt 0:00:39]} Qg6 {[%emt 0:00:07]} 22. Re2 {[%emt 0:07:12]} Kh8 {[%emt 0:00:51]} 23. Qh2 {[%emt 0:04:20]} Qf7 {[%emt 0:02:15]} 24. Ng5 {[%emt 0:02:55]} Qg8 {[%emt 0:00:26]} 25. Rg2 {[%emt 0:00:53]} Bc7 {[%emt 0:02:20]} 26. Nf3 {[%emt 0:02:42]} Ng6 {[%emt 0:02:34]} 27. Bg3 {[%emt 0:00:05]} Qf7 {[%emt 0:01:26]} 28. Kh1 {[%emt 0:02:11]} Qe7 {[%emt 0:00:47]} 29. h4 {[%emt 0:00:37]} fxg4 {[%emt 0:00:43]} 30. Ng5 {[%emt 0:00:02]} Rf6 {[%emt 0:00:19]} 31. Nxh7 {[%emt 0:00:23]} Kxh7 {[%emt 0:00:28]} 32. h5 {[%emt 0:00:02]} Rh8 {[%emt 0:00:22]} 33. Bh4 {[%emt 0:01:09]} Be8 {[%emt 0:03:51]} 34. Rxg4 {[%emt 0:00:32]} Kg8 {[%emt 0:01:56]} 35. Bxf6 {[%emt 0:03:26]} Qxf6 {[%emt 0:00:44]} 36. Bxg6 {[%emt 0:00:16]} Bxg6 {[%emt 0:00:27]} 37. Rxg6 {[%emt 0:00:05]} Qf5 {[%emt 0:00:07]} 38. Qg2 {[%emt 0:01:52]} Rxh5+ {[%emt 0:02:33]} 39. Kg1 {[%emt 0:00:01]} Rh7 {[%emt 0:00:46]} 40. Qg4 {[%emt 0:00:21]} Qd3 {[%emt 0:01:11]} 41. Qxe6+ {[%emt 0:00:06]} Kf8 {[%emt 0:00:02]} 42. Qc8+ {[%emt 0:00:30]} Kf7 {[%emt 0:00:03]} 43. Qe6+ {[%emt 0:00:05]} Kf8 {[%emt 0:00:03]} 44. Rg5 {[%emt 0:00:24]} Rh1+ {[%emt 0:00:14]} 45. Kxh1 {[%emt 0:00:07]} Qxf1+ {[%emt 0:00:02]} 46. Kh2 {[%emt 0:01:44]} Qe2+ {[%emt 0:00:10]} 47. Kh3 {[%emt 0:01:08]} Qf3+ {[%emt 0:00:25]} 48. Kh2 {[%emt 0:00:48]} Qe2+ {[%emt 0:00:13]} 49. Kg3 {[%emt 0:00:02]} Qe1+ {[%emt 0:00:13]} 50. Kg4 {[%emt 0:00:06]} Qe2+ {[%emt 0:00:06]} 51. Kf5 {[%emt 0:00:32]} Qd3+ {[%emt 0:00:06]} 52. Kg4 {[%emt 0:00:10]} Qe2+ {[%emt 0:00:11]} 53. Kh3 {[%emt 0:01:01]} Qf3+ {[%emt 0:00:11]} 54. Rg3 {[%emt 0:00:41]} Qh1+ {[%emt 0:03:05]} 55. Kg4 {[%emt 0:00:04]} Qd1+ {[%emt 0:00:20]} 56. Kg5 {[%emt 0:00:44]} 1/2-1/2

[Event "Chinese Chess League 2019"]
[Site "Shen Yang"]
[Date "2019.11.22"]
[Round "17.14"]
[White "Girya, Olga"]
[Black "Wang, Yu A."]
[Result "1/2-1/2"]
[ECO "D06"]
[WhiteElo "2476"]
[BlackElo "2275"]
[Annotator "ChessBase"]
[PlyCount "90"]
[EventDate "2019.04.09"]
[EventType "team-tourn"]
[EventCountry "CHN"]
[SourceTitle "playchess.com"]
[Source "ChessBase"]
[SourceQuality "1"]
[TimeControl "5400+30"]

1. d4 {[%emt 0:00:00]} d5 {[%emt 0:00:00]} 2. c4 {[%emt 0:00:00]} Bf5 {[%emt 0:00:00]} 3. cxd5 {[%emt 0:00:39]} Bxb1 {[%emt 0:00:00]} 4. Qa4+ {[%emt 0:01:03]} c6 {[%emt 0:00:17]} 5. Rxb1 {[%emt 0:00:06]} Qxd5 {[%emt 0:00:10]} 6. Nf3 {[%emt 0:03:52]} Nd7 {[%emt 0:04:02]} 7. a3 {[%emt 0:14:51]} Qf5 {[%emt 0:04:19]} 8. Ra1 {[%emt 0:02:02]} e5 {[%emt 0:00:31]} 9. Nxe5 {[%emt 0:08:28]} Nxe5 {[%emt 0:01:16]} 10. dxe5 {[%emt 0:00:05]} Qxe5 {[%emt 0:04:30]} 11. Qf4 {[%emt 0:01:45]} Bd6 {[%emt 0:05:13]} 12. Qxe5+ {[%emt 0:00:04]} Bxe5 {[%emt 0:00:01]} 13. e3 {[%emt 0:03:53]} Nf6 {[%emt 0:06:10]} 14. Bc4 {[%emt 0:06:30]} O-O {[%emt 0:10:00]} 15. Ke2 {[%emt 0:00:42]} Rad8 {[%emt 0:01:18]} 16. Rb1 {[%emt 0:07:35]} Rfe8 {[%emt 0:08:01]} 17. a4 {[%emt 0:08:40]} h5 {[%emt 0:11:35]} 18. Bd2 {[%emt 0:07:48]} Ng4 {[%emt 0:09:42]} 19. Bc3 {[%emt 0:04:32]} Rd6 {[%emt 0:08:37]} 20. h3 {[%emt 0:03:13]} Bxc3 {[%emt 0:03:27]} 21. bxc3 {[%emt 0:05:12]} Ne5 {[%emt 0:00:15]} 22. Bb3 {[%emt 0:01:40]} Red8 {[%emt 0:02:30]} 23. Rhd1 {[%emt 0:00:16]} Rxd1 {[%emt 0:00:26]} 24. Bxd1 {[%emt 0:00:12]} b6 {[%emt 0:00:15]} 25. Bb3 {[%emt 0:00:55]} Kf8 {[%emt 0:01:51]} 26. f4 {[%emt 0:02:01]} Nd7 {[%emt 0:07:25]} 27. e4 {[%emt 0:03:42]} Ke7 {[%emt 0:01:54]} 28. Ke3 {[%emt 0:00:49]} f6 {[%emt 0:02:44]} 29. h4 {[%emt 0:02:01]} Nc5 {[%emt 0:01:27]} 30. Bc2 {[%emt 0:00:02]} g5 {[%emt 0:01:14]} 31. hxg5 {[%emt 0:03:12]} fxg5 {[%emt 0:00:01]} 32. g3 {[%emt 0:01:13]} Rg8 {[%emt 0:02:44]} 33. Rh1 {[%emt 0:01:02]} gxf4+ {[%emt 0:00:11]} 34. gxf4 {[%emt 0:00:08]} Rg3+ {[%emt 0:00:29]} 35. Kd2 {[%emt 0:00:44]} Rg2+ {[%emt 0:00:38]} 36. Kc1 {[%emt 0:00:12]} Rg4 {[%emt 0:00:58]} 37. Rxh5 {[%emt 0:02:16]} Rxf4 {[%emt 0:00:01]} 38. a5 {[%emt 0:00:14]} Ke6 {[%emt 0:01:23]} 39. axb6 axb6 {[%emt 0:00:01]} 40. e5 {[%emt 0:03:50]} Rf1+ {[%emt 0:00:51]} 41. Kd2 {[%emt 0:00:22]} Rf2+ {[%emt 0:00:01]} 42. Kd1 {[%emt 0:00:29]} Rf3 {[%emt 0:00:43]} 43. Kd2 {[%emt 0:01:48]} Rf2+ {[%emt 0:00:02]} 44. Kd1 {[%emt 0:00:14]} Rf3 {[%emt 0:00:01]} 45. Kd2 {[%emt 0:00:10]} Kd5 {[%emt 0:00:18]} 1/2-1/2

[Event "Chinese Chess League 2019"]
[Site "Shen Yang"]
[Date "2019.11.22"]
[Round "17.15"]
[White "Gu, Tianlu"]
[Black "Song, Yuxin"]
[Result "1/2-1/2"]
[ECO "B91"]
[WhiteElo "2259"]
[BlackElo "2284"]
[Annotator "ChessBase"]
[PlyCount "60"]
[EventDate "2019.04.09"]
[EventType "team-tourn"]
[EventCountry "CHN"]
[SourceTitle "playchess.com"]
[Source "ChessBase"]
[SourceQuality "1"]
[TimeControl "5400+30"]

1. e4 {[%emt 0:00:00]} c5 {[%emt 0:00:00]} 2. Nf3 {[%emt 0:00:00]} d6 {[%emt 0:00:00]} 3. d4 {[%emt 0:00:00]} cxd4 {[%emt 0:00:00]} 4. Nxd4 {[%emt 0:00:02]} Nf6 {[%emt 0:00:00]} 5. Nc3 {[%emt 0:00:09]} a6 {[%emt 0:00:00]} 6. g3 {[%emt 0:00:29]} e5 {[%emt 0:00:06]} 7. Nde2 {[%emt 0:00:11]} Be7 {[%emt 0:00:07]} 8. Bg2 {[%emt 0:00:20]} O-O {[%emt 0:00:11]} 9. O-O {[%emt 0:00:15]} b5 {[%emt 0:00:07]} 10. Nd5 {[%emt 0:00:15]} Nbd7 {[%emt 0:00:07]} 11. Nec3 {[%emt 0:00:25]} Nb6 {[%emt 0:00:07]} 12. Nxb6 {[%emt 0:00:32]} Qxb6 {[%emt 0:00:07]} 13. Bg5 {[%emt 0:00:30]} Be6 {[%emt 0:00:08]} 14. Bxf6 {[%emt 0:04:39]} Bxf6 {[%emt 0:00:06]} 15. Nd5 {[%emt 0:02:22]} Bxd5 {[%emt 0:00:07]} 16. Qxd5 {[%emt 0:00:05]} Rac8 {[%emt 0:00:09]} 17. Qb3 {[%emt 0:02:35]} Rc5 {[%emt 0:12:54]} 18. c3 {[%emt 0:11:45]} a5 {[%emt 0:05:01]} 19. a3 {[%emt 0:03:10]} Rb8 {[%emt 0:05:25]} 20. Rfd1 {[%emt 0:03:08]} Be7 {[%emt 0:09:50]} 21. Rd2 {[%emt 0:02:18]} b4 {[%emt 0:11:25]} 22. cxb4 {[%emt 0:12:02]} axb4 {[%emt 0:00:05]} 23. axb4 {[%emt 0:06:27]} Rb5 {[%emt 0:00:52]} 24. Ra4 {[%emt 0:00:10]} Rxb4 {[%emt 0:00:29]} 25. Rxb4 {[%emt 0:00:05]} Qxb4 {[%emt 0:00:09]} 26. Qxb4 {[%emt 0:00:06]} Rxb4 {[%emt 0:00:10]} 27. f3 {[%emt 0:00:09]} Bd8 {[%emt 0:01:54]} 28. Rxd6 {[%emt 0:08:25]} Bb6+ {[%emt 0:00:09]} 29. Kh1 {[%emt 0:00:26]} Rxb2 {[%emt 0:00:06]} 30. Rd1 {[%emt 0:01:22]} Bd4 {[%emt 0:00:04]} 1/2-1/2